[Event "7th Porticcio Open 2022"]
[Site "Porticcio"]
[Date "2022.07.05"]
[Round "6.4"]
[White "Karttunen, Mika"]
[Black "Piscopo, Pierluigi"]
[Result "1-0"]
[ECO "E29"]
[WhiteElo "2484"]
[BlackElo "2343"]
[Annotator "TA"]
[PlyCount "131"]
[EventDate "2022.07.02"]
[EventType "swiss"]
[EventCountry "FRA"]
[SourceTitle "playchess.com"]
[Source "ChessBase"]
[SourceQuality "1"]
[TimeControl "5400+30"]

{[%evp 22,131,-4,-26,51,23,56,61,70,64,113,91,174,0,0,0,0,7,29,22,47,6,13,2,8,3,5,0,0,0,12,0,48,49,43,53,43,49,191,104,94,110,107,-44,0,0,211,214,229,210,215,217,307,304,314,313,313,299,684,306,725,710,588,239,231,224,239,211,239,225,222,143,155,0,208,0,150,149,123,143,136,101,101,101,101,84,101,101,220,217,290,290,305,290,290,-67,346,310,304,302,29973,29974,29973,29975,29975,29975,29975,29976,29976,29977,29967,12518]} 1. d4 {[%emt 0:00:13]} Nf6 {[%emt 0:00:34]} 2. c4 {[%emt 0:00:10]} e6 {[%emt 0:00:08]} 3. Nc3 {[%emt 0:00:09]} Bb4 {[%emt 0:00:11]} 4. e3 {[%emt 0:00:19][%cal Be2e3,Be3e4][%mdl 32]} O-O {[%emt 0:00:13]} 5. Bd3 {[%emt 0:00:30]} c5 {[%emt 0:00:48]} 6. a3 {[%emt 0:01:46]} Bxc3+ {[%emt 0:00:34]} 7. bxc3 {[%emt 0:00:05]} Nc6 {[%emt 0:02:22]} 8. Ne2 {[%emt 0:02:25]} b6 {[%emt 0:04:48]} 9. e4 {[%emt 0:01:44]} Ne8 {[%emt 0:00:59]} 10. O-O {[%emt 0:04:33]} Ba6 {[%emt 0:00:54]} 11. f4 {[%emt 0:00:17]} f5 {[%emt 0:01:04]} 12. Ng3 {[%emt 0:00:51]} Nd6 {[%emt 0:06:35] E29: Nimzo-Indian: Sämisch: 5...0-0 6 e3 c5 7 Bd3 Nc6.} (12... cxd4 $11 13. cxd4 Nd6) 13. exf5 {[%emt 0:04:29]} (13. dxc5 {feels hotter.} Nxe4 14. Nxe4 fxe4 15. Bxe4 Bxc4 16. Rf2) 13... exf5 {[%emt 0:00:48]} 14. dxc5 {[%emt 0:02:59]} bxc5 {[%emt 0:02:05] White is slightly better.} 15. Be3 {[%emt 0:19:07]} Nxc4 {[%emt 0:12:25]} (15... g6 $14) 16. Bxc5 $16 {[%emt 0:00:52] This bishop pair is nice.} d6 {[%emt 0:15:26]} (16... Rf7 $16 17. Qe2 (17. Nxf5 Qa5 $17) 17... Qa5) 17. Bxc4+ $2 {[%emt 0:09:14]} (17. Bf2 $1 $18 {Strongly threatening Qe2.} d5 18. Qa4 (18. Nxf5 Qf6 $16) (18. Bxf5 Bc8 $16)) 17... Bxc4 $11 {[%emt 0:00:17] [#]} 18. Qxd6 $146 {[%emt 0:01:33]} ({Predecessor:} 18. Bxd6 Qb6+ 19. Kh1 Bxf1 20. Bxf8 Bxg2+ 21. Kxg2 Rxf8 22. Qd5+ {½-½ (22) Dearing,E (2185)-Grant,J (2265) Oban 1996}) 18... Qxd6 {[%emt 0:05:38]} 19. Bxd6 {[%emt 0:00:53]} Rfd8 {[%emt 0:00:05]} 20. Rfd1 {[%emt 0:01:49]} Bb3 {[%emt 0:08:27]} 21. Rdb1 {[%emt 0:10:21]} Be6 {[%emt 0:09:52]} 22. Bb4 {[%emt 0:01:22]} Rd3 {[%emt 0:06:33]} 23. Re1 {[%emt 0:04:01]} Kf7 {[%emt 0:00:22]} 24. Ne2 {[%emt 0:01:04]} (24. Nh1 {is more complex.} Rb8 25. Nf2 Rd5 26. c4) 24... Rad8 {[%emt 0:08:23]} 25. Bc5 {[%emt 0:00:16]} Rd2 {[%emt 0:01:13]} 26. Rab1 {[%emt 0:18:37]} Bd5 {[%emt 0:03:09]} (26... R8d7 $11 {is superior.}) 27. Rb7+ $14 {[%emt 0:07:13]} Kg6 {[%emt 0:00:50][%cal Oc6e5]} 28. Rc7 {[%emt 0:00:33]} Rc2 {[%emt 0:07:26]} 29. Bf2 {[%emt 0:02:24]} (29. Bxa7 Re8 30. Rd7 Rcxe2 31. Rxe2 Rxe2 32. Rxd5 Nxa7 33. Rd6+ Kh5 $19) 29... Rd6 {[%emt 0:00:13]} (29... Re8 $14 30. Rd7 Bb3) 30. Rd1 {[%emt 0:01:31]} Rxe2 $16 {[%emt 0:00:28]} 31. c4 $1 {[%emt 0:00:04]} Ne7 {[%emt 0:01:48] aiming for ...Rc6.} 32. Rxa7 $2 {[%emt 0:01:54] [#]} (32. cxd5 $16 Rxd5 33. Re1 Rxe1+ 34. Bxe1) 32... Rc6 $1 {[%emt 0:00:27]} 33. cxd5 {[%emt 0:00:35]} (33. Re1 Rxf2) 33... Rcc2 {[%emt 0:00:05]} (33... Nxd5 $11 {and Black has nothing to worry.} 34. Kf1 (34. Bd4 Nf6 $14) 34... Rcc2) 34. Bd4 $18 {[%emt 0:01:54] Black must now prevent d6.} Nxd5 {[%emt 0:01:32]} 35. Rxg7+ {[%emt 0:00:22]} Kh6 {[%emt 0:00:11] [#]} 36. Rg3 $1 {[%emt 0:00:45]} Nxf4 {[%emt 0:00:46]} (36... Re4 {is a better defense.} 37. Bg7+ Kh5 38. Rg5+ Kh4) 37. Be3 {[%emt 0:00:29]} Rxe3 {[%emt 0:00:21]} 38. Rxe3 {[%emt 0:00:08] And now Ra1 would win.} Rxg2+ {[%emt 0:00:01][%mdl 4096] Endgame KRR-KRN} 39. Kh1 {[%emt 0:00:32]} Rf2 {[%emt 0:00:53] Inhibits Rf3.} (39... Ra2 40. Rf3 Ng6 41. Rxf5 Rxa3) 40. Rg1 (40. Ra1 $142 Nd5 41. Rh3+ Kg5 42. a4) 40... Ng6 $2 {[%emt 0:00:16]} (40... Ra2 41. Rf3 Ng6 42. Rxf5 Rxa3) 41. Rh3+ {[%emt 0:01:23]} Kg7 {[%emt 0:00:06]} 42. Rhg3 {[%emt 0:00:22]} (42. Ra1 $142) 42... Ra2 {[%emt 0:00:04]} 43. Rf1 {[%emt 0:00:59]} Kf6 {[%emt 0:00:13]} 44. Kg1 {[%emt 0:00:39]} f4 {[%emt 0:00:10]} 45. Rh3 {[%emt 0:00:04]} Kf5 {[%emt 0:00:17]} 46. Rf2 {[%emt 0:00:15]} ({Don't do} 46. Rxh7 Rxa3 47. Re1 Kg4) 46... Ra1+ {[%emt 0:00:08]} 47. Rf1 {[%emt 0:00:08]} (47. Kg2 $16) 47... Ra2 {[%emt 0:00:01]} 48. Rf2 {[%emt 0:00:04]} ({Much less strong is} 48. Rxh7 Rxa3 49. Rf2 Ne5) 48... Ra1+ {[%emt 0:00:01]} 49. Kg2 {[%emt 0:00:10]} Kg4 {[%emt 0:00:10]} 50. Rxh7 {[%emt 0:00:14] h3+ is the strong threat.} Rxa3 {[%emt 0:00:05]} 51. h3+ {[%emt 0:00:53]} Kg5 {[%emt 0:00:35]} 52. Kh2 {[%emt 0:00:12]} Ne5 {[%emt 0:01:34]} 53. Rg2+ {[%emt 0:00:43]} Kf5 {[%emt 0:01:50] ( -> ...Nf3+)} 54. Rh5+ {[%emt 0:00:05]} Kf6 {[%emt 0:00:02] [#]} (54... Ke4 $16 {was necessary.} 55. Re2+ Re3) 55. Rb2 $1 {[%emt 0:00:46] Threatens to win with Rb6+.} Re3 {[%emt 0:02:39]} 56. Rb6+ {[%emt 0:00:53]} Kg7 {[%emt 0:00:00]} 57. Rg5+ {[%emt 0:00:53]} Kh7 {[%emt 0:00:01]} 58. Rf5 $2 {[%emt 0:00:34]} ({White has to play} 58. Kg2 $18) 58... Re2+ $2 {[%emt 0:00:08][%mdl 8192]} (58... Nf3+ $15 59. Kg2 (59. Kh1 $2 Re2 $19) 59... Nh4+ 60. Kf2 Nxf5) 59. Kg1 {[%emt 0:00:20]} f3 {[%emt 0:01:17]} 60. Kf1 {[%emt 0:00:36] Intending Re6 and mate.} Re3 $2 {[%emt 0:00:45]} (60... Nc4 $18 61. Rf7+ (61. Rxf3 Re7 $11) 61... Kg8 62. Rxf3 Re8 63. Rg6+ Kh7) 61. Re6 {[%emt 0:00:49] White mates.} Nc4 {[%emt 0:00:59]} 62. Rh5+ {[%emt 0:00:22]} Kg7 {[%emt 0:00:21]} 63. Rxe3 {[%emt 0:00:04]} Nxe3+ {[%emt 0:00:02]} 64. Kf2 {[%emt 0:00:06]} Kg6 {[%emt 0:00:02]} 65. Rc5 {[%emt 0:00:40]} Nf5 {[%emt 0:00:07]} 66. Kxf3 {[%emt 0:00:05] Weighted Error Value: White=0.47/Black=0.51} 1-0

[Event "7th Porticcio Open 2022"]
[Site "Porticcio"]
[Date "2022.07.05"]
[Round "6.5"]
[White "Trent, Lawrence"]
[Black "Vilaisarn, Akkhavanh"]
[Result "1-0"]
[ECO "A00"]
[WhiteElo "2404"]
[BlackElo "2274"]
[Annotator "TA"]
[PlyCount "42"]
[EventDate "2022.07.02"]
[EventType "swiss"]
[EventCountry "FRA"]
[SourceTitle "playchess.com"]
[Source "ChessBase"]
[SourceQuality "1"]
[TimeControl "5400+30"]

{[%evp 9,42,-2,37,31,31,28,27,10,27,22,14,16,10,0,0,0,27,3,104,111,172,134,306,286,694,670,1008,967,2093,2122,2090,2041,29985,3249,29998]} 1. Nc3 {[%emt 0:00:02]} d5 {[%emt 0:01:49]} 2. d4 {[%emt 0:00:04]} e6 {[%emt 0:00:18]} 3. Bf4 {[%emt 0:00:39]} Bd6 {[%emt 0:01:15]} 4. e3 {[%emt 0:01:27]} Ne7 {[%emt 0:02:39]} 5. Nf3 {[%emt 0:02:19]} Ng6 {[%emt 0:00:44] [#]} 6. Bxd6 $146 {[%emt 0:01:32] D00: 1 d4 d5: Unusual lines.} ({Predecessor:} 6. Bg3 Nd7 7. Bd3 f5 8. Qe2 a6 9. Bxd6 cxd6 10. g4 fxg4 11. Nd2 Nf6 12. h3 {1-0 (44) Bortnyk,O (2604)-Pap,G (2481) Chess.com INT 2022}) 6... cxd6 {[%emt 0:00:31]} 7. h4 {[%emt 0:02:14]} Ne7 {[%emt 0:02:18]} 8. e4 {[%emt 0:04:56] White has an edge.} dxe4 {[%emt 0:01:00]} 9. Nxe4 {[%emt 0:00:02][%cal Bc3e4,Be4g3,Bg3h5][%mdl 32]} Nbc6 {[%emt 0:01:52]} 10. Qd2 {[%emt 0:00:10]} d5 {[%emt 0:06:19]} 11. Ng3 {[%emt 0:00:07]} O-O {[%emt 0:16:19]} 12. Bd3 {[%emt 0:03:13]} h6 {[%emt 0:00:59]} 13. O-O-O {[%emt 0:05:32]} Bd7 {[%emt 0:08:04] [#]} (13... f6 $11 {remains equal.}) 14. Nh5 $1 $16 {[%emt 0:02:53] White is much more active. The black rooks are badly placed.} Nf5 {[%emt 0:14:41]} (14... Be8 $16 {keeps fighting.}) 15. g4 {[%emt 0:13:15][%cal Bg2g4,Bg4g5][%mdl 32]} Nd6 {[%emt 0:02:39] This move loses the game for Black.} (15... Ncxd4 $2 16. gxf5 Nxf3 17. Qf4 exf5 18. Qxf3 $18) (15... Nfxd4 $16 {was called for.} 16. Nxd4 (16. Bh7+ Kxh7 17. Nxd4 g6 $17) 16... Nxd4) 16. g5 $18 {[%emt 0:01:25]} Ne4 $2 {[%emt 0:08:13]} (16... Kh8 17. Ne5 (17. gxh6 g6 $18) 17... Rc8) 17. Bxe4 {[%emt 0:00:37][%cal Og5h6]} dxe4 {[%emt 0:00:09] [#]} 18. gxh6 $1 {[%emt 0:00:05]} g6 {[%emt 0:01:19]} (18... Qa5 19. Qxa5) 19. h7+ {[%emt 0:00:08]} Kxh7 {[%emt 0:03:24]} 20. Ng5+ {[%emt 0:00:01] Pair of Knights!} Kg8 {[%emt 0:00:19] [#]} 21. Nxe4 $1 {[%emt 0:00:02][%cal Od2h6] Threatening mate with Qh6!} Qa5 {Weighted Error Value: White=0.07 (flawless) /Black=1.02} (21... Kh7 22. Nef6+) 1-0

[Event "7th Porticcio Open 2022"]
[Site "Porticcio"]
[Date "2022.07.05"]
[Round "6.6"]
[White "Droin, Augustin"]
[Black "Stoenescu, Radu"]
[Result "1-0"]
[ECO "B90"]
[WhiteElo "2391"]
[BlackElo "2107"]
[Annotator "TA"]
[PlyCount "119"]
[EventDate "2022.07.02"]
[EventType "swiss"]
[EventCountry "FRA"]
[SourceTitle "playchess.com"]
[Source "ChessBase"]
[SourceQuality "1"]
[TimeControl "5400+30"]

{[%evp 17,119,17,14,32,36,13,37,15,9,20,126,129,160,141,122,124,177,175,283,288,269,277,252,245,266,210,244,212,239,212,226,210,274,273,259,195,222,225,218,204,227,143,181,181,206,208,333,317,350,288,316,318,303,279,295,325,335,318,333,303,325,322,525,491,697,686,500,666,639,621,564,550,1095,1080,1304,1288,1283,1149,1231,1021,1511,1279,29958,66,29958,29961,29960,29962,29960,29963,29963,29963,29968,29969,29972,29972,29972,29974,29976,29977,29989,29990,29990,29987]} 1. e4 {[%emt 0:00:26]} c5 {[%emt 0:00:10]} 2. Nf3 {[%emt 0:00:04]} d6 {[%emt 0:00:12]} 3. d4 {[%emt 0:00:04]} Nf6 {[%emt 0:00:11]} 4. Nc3 {[%emt 0:00:03]} cxd4 {[%emt 0:00:04]} 5. Nxd4 {[%emt 0:00:03]} a6 {[%emt 0:00:06]} 6. f3 {[%emt 0:00:04]} e6 {[%emt 0:01:00]} 7. Be3 {[%emt 0:00:46]} b5 {[%emt 0:00:07][%cal Bb7b5,Bb5b4][%mdl 32]} 8. Qd2 {[%emt 0:00:31]} Bb7 {[%emt 0:00:08]} 9. g4 {[%emt 0:00:08]} h6 {[%emt 0:00:04]} 10. h4 {[%emt 0:03:03] B80: Sicilian Scheveningen: 6 g3 and 6 Be3, including English Attack.} Nbd7 {[%emt 0:00:08]} 11. Rg1 {[%emt 0:01:52]} b4 {[%emt 0:31:08]} 12. Na4 {[%emt 0:01:39] [#] Strongly threatening g5. White is slightly better.} Qa5 $146 {[%emt 0:02:14]} ({Predecessor:} 12... Nc5 13. Nxc5 dxc5 14. Nb3 Qc7 15. Bc4 Nd7 16. Qe2 Be7 17. O-O-O a5 18. g5 a4 {1-0 (43) Socko,B (2610)-Ejsmont,K (2395) Warsaw 2005}) 13. b3 {[%emt 0:00:57]} Nc5 {[%emt 0:00:03]} (13... e5 $1 $11 {keeps the balance.}) 14. a3 $16 {[%emt 0:02:34][%cal Ba2a3,Ba3b4][%mdl 32]} Nxa4 {[%emt 0:00:05]} 15. axb4 {[%emt 0:00:04]} (15. bxa4 Qxa4 16. Qxb4 Qxb4+ 17. axb4 d5 $11) 15... Qc7 {[%emt 0:00:30]} 16. Rxa4 {[%emt 0:01:12] g5 is the strong threat.} d5 {[%emt 0:00:22]} (16... e5 $16) 17. b5 $18 {[%emt 0:11:35]} a5 {[%emt 0:09:35]} (17... e5 $142) 18. b6 {[%emt 0:03:11]} Qxb6 {[%emt 0:00:05]} 19. Bb5+ {[%emt 0:00:03]} Nd7 {[%emt 0:01:07] [#]} 20. exd5 $1 {[%emt 0:05:55]} exd5 {[%emt 0:01:54]} 21. Qd3 {[%emt 0:12:11]} Qc7 {[%emt 0:05:23] [#]} 22. Bf4 $1 {[%emt 0:12:16][%mdl 512]} Bd6 {[%emt 0:02:58]} (22... Qxf4 $2 23. Qe2+ Kd8 {[#]} 24. Ne6+ $1 {[%mdl 512]} fxe6 25. Rxf4 $18) 23. Bxd6 {[%emt 0:00:42]} Qxd6 {[%emt 0:00:08]} 24. Nf5 {[%emt 0:00:24][%csl LRd6,LRg7]} Qf6 {[%emt 0:24:51]} 25. Qd4 {[%emt 0:00:43]} Kd8 {[%emt 0:06:14]} 26. Bxd7 {[%emt 0:00:34]} Kxd7 {[%emt 0:00:52]} 27. Qxf6 {[%emt 0:00:08] Dancing on a razor blade.} ({Weaker is} 27. Qc5 Rhc8 28. Qf2 (28. Qb5+ $2 Bc6 $19) 28... Bc6 $11) 27... gxf6 {[%emt 0:00:08]} 28. Kd2 {[%emt 0:00:09]} Bc6 {[%emt 0:04:32]} 29. Ra3 {[%emt 0:00:12]} Kc7 {[%emt 0:01:17]} 30. Re1 {[%emt 0:00:31]} Kb6 {[%emt 0:01:22]} 31. Re7 {[%emt 0:00:15]} Raf8 {[%emt 0:00:17]} (31... h5 {might work better.} 32. Rxf7 Raf8 33. Rxf8 Rxf8) 32. h5 {[%emt 0:00:49]} Rh7 {[%emt 0:00:36]} 33. Ra1 {[%emt 0:00:49]} Rd8 {[%emt 0:01:10]} 34. Nd4 {[%emt 0:00:21]} Bd7 {[%emt 0:00:49]} 35. Ke3 {[%emt 0:01:46]} Re8 {[%emt 0:01:01]} 36. Rxe8 {[%emt 0:00:05]} Bxe8 {[%emt 0:00:01][%mdl 4096] Endgame KRB-KRN} 37. Kf4 {[%emt 0:00:08] Threatens to win with Kf5.} Bd7 {[%emt 0:00:33]} 38. Re1 {[%emt 0:00:43]} Kc5 {[%emt 0:00:20]} 39. c3 {[%emt 0:00:08]} a4 $2 {[%emt 0:01:03]} (39... Rh8 40. Re7 Be6) 40. bxa4 {[%emt 0:00:04]} Kc4 {[%emt 0:01:35]} (40... Bxa4 $142 41. Ra1 Bd7) 41. Re7 {[%emt 0:01:13]} Bxa4 {[%emt 0:00:08]} 42. Rc7+ {[%emt 0:00:02]} Kd3 {[%emt 0:01:05]} 43. Kf5 {[%emt 0:00:03]} Bd1 {[%emt 0:01:11]} 44. Kxf6 {[%emt 0:00:03]} Rh8 {[%emt 0:01:10]} 45. Kg7 {[%emt 0:00:12]} Rb8 {[%emt 0:00:34]} 46. g5 {[%emt 0:00:05]} hxg5 {[%emt 0:00:51]} 47. h6 {[%emt 0:00:04]} f5 {[%emt 0:00:51]} 48. h7 {[%emt 0:02:31]} g4 {[%emt 0:00:23]} 49. fxg4 {[%emt 0:00:03]} fxg4 {[%emt 0:00:02]} 50. Kh6 $2 {[%emt 0:00:52]} (50. h8=Q {mates} Rxh8 51. Kxh8 g3 52. Nf5 g2 53. Rg7 Bf3 54. Rg3 Kd2 55. Kg7) 50... Rb2 $2 {[%emt 0:00:58][%mdl 8192] A mistake that costs the game.} (50... g3 $14 51. Nc6 Rh8) 51. h8=Q {[%emt 0:04:30] White mates.} Rh2+ {[%emt 0:00:06]} 52. Kg7 {[%emt 0:00:01]} Rxh8 {[%emt 0:00:06]} 53. Kxh8 {[%emt 0:00:04]} Ke3 {[%emt 0:00:55]} 54. Rd7 {[%emt 0:01:17]} Ke4 {[%emt 0:02:10]} 55. Kg7 {[%emt 0:01:54]} g3 {[%emt 0:01:22]} 56. Kf6 {[%emt 0:00:05]} Bg4 {[%emt 0:00:36]} 57. Re7+ {[%emt 0:00:09]} Kd3 {[%emt 0:01:07]} 58. Rg7 {[%emt 0:00:04]} Kxc3 {[%emt 0:00:49]} 59. Rxg4 {[%emt 0:00:04]} g2 {[%emt 0:00:04]} 60. Nf5 {[%emt 0:00:03] Weighted Error Value: White=0.22 (precise) /Black=0.58} 1-0

[Event "7th Porticcio Open 2022"]
[Site "Porticcio"]
[Date "2022.07.05"]
[Round "6.7"]
[White "Navrotescu, Andreea"]
[Black "Suarez Uriel, Adrian"]
[Result "0-1"]
[ECO "A35"]
[WhiteElo "2373"]
[BlackElo "2386"]
[Annotator "TA"]
[PlyCount "60"]
[EventDate "2022.07.02"]
[EventType "swiss"]
[EventCountry "FRA"]
[SourceTitle "playchess.com"]
[Source "ChessBase"]
[SourceQuality "1"]
[TimeControl "5400+30"]

{[%evp 22,60,39,36,9,33,44,46,72,18,22,11,20,13,17,-75,-74,-63,-18,-28,-47,-152,-56,-73,-73,-220,-220,-213,-206,-204,-129,-348,-284,-29987,-5309,-5102,-5093,-4132,-2120,-822,-597]} 1. c4 {[%emt 0:00:50]} c5 {[%emt 0:00:05]} 2. Nc3 {[%emt 0:00:04]} Nc6 {[%emt 0:00:05]} 3. Nf3 {[%emt 0:00:12]} g6 {[%emt 0:01:15]} 4. e3 {[%emt 0:00:06]} Nf6 {[%emt 0:00:11][%cal Bg8f6,Bf6d5,Bd5c3][%mdl 32]} 5. d4 {[%emt 0:00:05]} cxd4 {[%emt 0:00:17]} 6. exd4 {[%emt 0:00:01]} d5 {[%emt 0:00:12]} 7. cxd5 {[%emt 0:00:05]} Nxd5 {[%emt 0:00:04]} 8. Qb3 {[%emt 0:00:08]} Nxc3 {[%emt 0:00:37]} 9. Bc4 {[%emt 0:00:09]} Nd5 {[%emt 0:00:07]} 10. Bxd5 {[%emt 0:00:03]} e6 {[%emt 0:00:12]} 11. Bxc6+ {[%emt 0:00:04]} bxc6 {[%emt 0:00:04]} 12. O-O {[%emt 0:01:18]} Qd5 {[%emt 0:02:59] A35: Symmetrical English: 2 Nc3 Nc6 3 Nf3.} 13. Qe3 {[%emt 0:00:11] now scores much better than the old 13.Be3.} Bg7 {[%emt 0:06:50]} 14. Bd2 {[%emt 0:03:43] [#]} Rb8 $146 {[%emt 0:01:07][%cal Ba8b8,Bb8b2,Bb2e2][%mdl 32] Inhibits Bb4. White is slightly better.} ({Predecessor:} 14... O-O 15. Rfc1 Rb8 16. Rc5 Qd6 17. Bc3 Rb5 18. a4 Rxc5 19. dxc5 Qd5 20. Bxg7 Kxg7 {1-0 (62) Ponkratov,P (2628)-Triapishko,A (2508) Sochi 2018}) 15. Bc3 {[%emt 0:04:42]} (15. Qa3 $16) 15... O-O $11 {[%emt 0:00:11]} 16. a3 {[%emt 0:03:11]} Ba6 {[%emt 0:05:47]} 17. Rfd1 {[%emt 0:01:02]} Rfd8 {[%emt 0:06:52][%cal Oc6c5]} 18. Bb4 {[%emt 0:16:21]} (18. Re1 $11 {keeps the balance.}) 18... c5 $1 $17 {[%emt 0:11:16]} 19. Bxc5 {[%emt 0:01:39]} Rxb2 {[%emt 0:00:20]} (19... Rb3 $5 {[%cal Rb3e3]} 20. Qg5 Be2 21. Qxd5 Rxd5 $15) 20. Rdb1 {[%emt 0:06:51]} Re2 {[%emt 0:03:57]} 21. Qc3 {[%emt 0:05:03]} ({Better is} 21. Qb3 $1 $15) 21... g5 {[%emt 0:07:13] Black is more active.} (21... e5 $1 $17 {[%cal Re5d4]} 22. Qb3 (22. dxe5 $2 Rc8 $19) 22... Bc4) 22. h3 {[%emt 0:16:00]} h5 $36 {[%emt 0:00:05][%mdl 2048] White is under strong pressure.} 23. Qa5 {[%emt 0:03:17]} (23. Re1 $17) 23... g4 $1 $19 {[%emt 0:01:07]} 24. hxg4 {[%emt 0:08:55]} hxg4 {[%emt 0:00:01]} 25. Ne5 {[%emt 0:00:44] Strongly threatening Nc6.} Bxe5 {[%emt 0:13:36][%cal Bg7e5,Be5f4,Bf4g3][%mdl 32] Really sharp!} 26. Qxa6 $2 {[%emt 0:00:15] White does not recover from this.} (26. dxe5 $17 Rxe5 27. Qxa6 Qxc5 28. Rc1) 26... Rd2 {[%emt 0:06:16]} 27. Qxa7 $2 {[%emt 0:12:15] [#]} (27. Qb7 $19 Bg3 28. Qxd5 (28. fxg3 $2 Rd1+ 29. Rxd1 Qxb7 $19) 28... Bxf2+ 29. Kf1 Rxd5 30. Bb4) 27... g3 $1 {[%emt 0:01:36]} 28. Rf1 {[%emt 0:06:43] Black is clearly winning.} Bf4 {[%emt 0:00:27] ( -> ...Qh5)} 29. Rae1 {[%emt 0:03:15]} Qh5 {[%emt 0:01:21][%csl Gf4,Gg3][%cal Rh5h2]} 30. fxg3 {[%emt 0:02:07]} Bxg3 {[%emt 0:00:02] Weighted Error Value: White=0.57/Black=0.72} 0-1

[Event "7th Porticcio Open 2022"]
[Site "Porticcio"]
[Date "2022.07.05"]
[Round "6.8"]
[White "Derige Kane, Yan"]
[Black "Martin Duque, Jesus"]
[Result "0-1"]
[ECO "E15"]
[WhiteElo "2112"]
[BlackElo "2378"]
[Annotator "TA"]
[PlyCount "64"]
[EventDate "2022.07.02"]
[EventType "swiss"]
[EventCountry "FRA"]
[SourceTitle "playchess.com"]
[Source "ChessBase"]
[SourceQuality "1"]
[TimeControl "5400+30"]

{[%evp 18,64,9,0,34,29,45,40,60,0,69,70,83,56,45,46,54,32,35,19,12,-25,102,-54,-64,-85,-100,-62,-26,-233,-69,-188,-179,-185,-117,-534,-506,-551,-541,-897,-905,-1442,-1417,-29986,-29987,-29987,-29986,-29984,-929]} 1. d4 {[%emt 0:08:33]} Nf6 {[%emt 0:00:01]} 2. c4 {[%emt 0:02:14]} e6 {[%emt 0:00:35]} 3. Nf3 {[%emt 0:00:04]} b6 {[%emt 0:00:10]} 4. g3 {[%emt 0:00:25]} Ba6 {[%emt 0:01:22]} 5. b3 {[%emt 0:00:11]} Bb4+ {[%emt 0:00:11]} 6. Bd2 {[%emt 0:00:04]} Be7 {[%emt 0:00:06]} 7. Nc3 {[%emt 0:06:28]} c6 {[%emt 0:03:34]} 8. e4 {[%emt 0:01:42]} d5 {[%emt 0:00:12]} 9. e5 {[%emt 0:00:14] The old main line.} Ne4 {[%emt 0:05:07]} 10. Bd3 {[%emt 0:02:22]} Nxd2 {[%emt 0:09:41] E15: Queen's Indian: 4 g3 sidelines, 4 g3 Ba6 and 4 g3 Bb7 early deviations.} 11. Qxd2 {[%emt 0:01:09] [#]} h6 $146 {[%emt 0:00:24]} ({Predecessor:} 11... O-O 12. O-O Bb7 13. cxd5 cxd5 14. Ne2 Ba6 15. Rac1 Bxd3 16. Qxd3 Qd7 17. Nf4 Nc6 18. h4 {½-½ (50) Ovetchkin,R (2526)-Khismatullin,D (2636) St Petersburg 2012}) 12. h4 {[%emt 0:12:10]} Qd7 {[%emt 0:04:42] White is slightly better.} 13. g4 {[%emt 0:06:19]} (13. O-O $14) 13... b5 {[%emt 0:07:37]} (13... Bb7 $11) 14. c5 $1 $14 {[%emt 0:06:25]} b4 {[%emt 0:01:36] Threatens to win with ...Bxd3.} 15. Ne2 {[%emt 0:04:38]} Bxd3 {[%emt 0:00:20]} 16. Qxd3 {[%emt 0:00:05]} a5 {[%emt 0:00:38]} 17. Kd2 {[%emt 0:08:26]} Na6 {[%emt 0:04:49]} 18. g5 {[%emt 0:01:06]} Nc7 {[%emt 0:00:15]} 19. g6 {[%emt 0:03:56]} f5 {[%emt 0:01:25]} (19... O-O $11 {keeps the balance.}) 20. exf6 $2 {[%emt 0:00:37]} (20. a3 $16) 20... Bxf6 $15 {[%emt 0:00:02]} 21. Nf4 {[%emt 0:01:06]} O-O {[%emt 0:00:57][%cal Oe6e5] And now ...e5! would win.} 22. Qe3 {[%emt 0:03:08] Inhibits e5.} Rae8 {[%emt 0:06:33][%cal Of6d4]} 23. Nh5 $2 {[%emt 0:01:37] [#]} (23. Nd3 $1 $11 {and White stays safe.}) 23... Qd8 $2 {[%emt 0:02:21]} ({Black should play} 23... Bxd4 $1 $19 {[%mdl 512]} 24. Nxd4 e5) 24. Ne5 {[%emt 0:21:35]} ({Better is} 24. Rag1 $15) 24... Bxe5 $19 {[%emt 0:00:42]} 25. Qxe5 {[%emt 0:00:07][%csl Gh5][%cal Re5g7]} Qe7 {[%emt 0:00:05] Dancing on a razor blade.} (25... Qd7 $19 26. Rh2 Nb5) 26. f4 {[%emt 0:00:30][%mdl 8192]} (26. Rae1 $17 {is tougher.}) 26... Rf5 {[%emt 0:00:24]} 27. Qe2 {[%emt 0:00:05]} Nb5 {[%emt 0:00:21]} 28. Kd3 {[%emt 0:04:21]} e5 {[%emt 0:04:02][%cal Be6e5,Be5e4][%mdl 32]} 29. Rae1 {[%emt 0:03:42]} Nxd4 {[%emt 0:01:46]} 30. Qg4 {[%emt 0:00:08]} Qxc5 {[%emt 0:00:38][%csl Gb4][%cal Rc5c3] Black mates.} 31. Rc1 {[%emt 0:00:06]} e4+ {[%emt 0:01:11]} 32. Kd2 {[%emt 0:00:32]} Qb5 {[%emt 0:01:02] Weighted Error Value: White=1.29/Black=0.32} (32... e3+ $142 33. Kd1 Qb5 34. Qg2 Qd3+ 35. Ke1 Nf3+ 36. Qxf3 Qd2+ 37. Kf1 e2+ 38. Kg2 e1=N+ 39. Kh3 Nxf3 40. Rcf1 Re3 41. Ng3 Rxf4 42. Rxf3 Rfxf3 43. Rg1 Qf2 44. Kg4 Qxg1 45. a4 Qxg3+ 46. Kh5 Rf5#) 0-1